bitfinex/quotes_SOLUSD_20260201
["timestamp","ask_amount","ask_price","bid_price","bid_amount"]
[1769907704730,33.13556555,105.63,105.58,3.83069455]
[1769907705922,32.83172582,105.64,105.59,3.83069455]
[1769907705923,26.3,105.64,105.59,3.83069455]
[1769907706229,38.04438565,105.64,105.59,3.83069455]
[1769907707028,2.28888238,105.63,105.59,3.83069455]
[1769907707438,2.28888238,105.63,105.58,3.83069455]
[1769907707637,2.28888238,105.63,105.57,3.93069455]
[1769907708630,2.29944416,105.61,105.57,3.93069455]
[1769907709323,2.29944416,105.61,105.57,0.1]
[1769907709524,2.30988463,105.6,105.57,0.1]
[1769907710332,0.483,105.51,105.5,9.47847641]
[1769907710541,3.91338983,105.55,105.5,9.47847641]
[1769907710731,3.91338983,105.54,105.48,33.18065092]
[1769907712218,3.91338983,105.54,105.47,9.4810152]
[1769907712422,3.91338983,105.54,105.5,3.83069455]
[1769907712845,13.38923209,105.54,105.5,3.83069455]
[1769907713136,9.47442785,105.55,105.51,3.83069455]
[1769907713531,13.38781768,105.55,105.51,3.83069455]
[1769907713922,4.27527085,105.58,105.54,3.83069455]
[1769907713923,9.47149081,105.58,105.54,3.83069455]
[1769907714847,26.32,105.61,105.54,3.83069455]
[1769907715154,23.67796335,105.59,105.54,3.83069455]
[1769907715747,23.67796335,105.59,105.55,3.83069455]
[1769907715945,2.3013532,105.58,105.55,3.83069455]
[1769907716132,2.3013532,105.58,105.53,9.47560758]
[1769907716133,2.3013532,105.58,105.52,9.47646465]
[1769907717145,13.38577781,105.57,105.52,9.47687642]
[1769907717525,3.91338983,105.56,105.51,9.47740813]
[1769907718230,3.91338983,105.56,105.52,3.83069455]
[1769907718632,13.38749587,105.56,105.52,3.83069455]
[1769907720246,9.47189583,105.58,105.53,3.83069455]
[1769907720644,27.58651269,105.61,105.55,3.83069455]
[1769907720844,27.58651269,105.61,105.56,3.83069455]
[1769907720845,13.38305357,105.61,105.56,3.83069455]
[1769907721527,3.91338983,105.6,105.54,3.83069455]
[1769907722530,13.38398363,105.59,105.54,13.3054255]
[1769907722849,9.4705938,105.59,105.55,3.83069455]
[1769907723731,13.38398363,105.59,105.55,3.83069455]
[1769907724239,9.4705938,105.59,105.55,3.83069455]
[1769907724633,13.38330445,105.6,105.56,3.83069455]
[1769907724832,9.46863692,105.62,105.57,3.83069455]
[1769907725236,9.46863692,105.62,105.58,3.83069455]
[1769907725946,9.46739296,105.63,105.58,3.83069455]
[1769907726149,0.2,105.65,105.61,13.07972697]
[1769907726349,0.2,105.65,105.62,9.24903242]
[1769907726537,0.2,105.65,105.63,3.83069455]
[1769907727030,0.2,105.65,105.62,4.23268325]
[1769907728238,9.66551374,105.65,105.62,4.23268325]
[1769907728433,0.2,105.65,105.62,4.23268325]
[1769907728746,0.2,105.65,105.63,4.23268325]
[1769907728950,13.35547389,105.68,105.64,4.23268325]
[1769907729155,14.39485762,105.69,105.64,4.23268325]
[1769907729458,9.46186798,105.69,105.65,4.23268325]
[1769907729645,13.35444678,105.69,105.65,4.23268325]
[1769907730046,4.93277236,105.71,105.67,4.23268325]
[1769907730452,13.35261913,105.71,105.67,4.23268325]
[1769907731257,13.35191412,105.72,105.68,4.23268325]
[1769907731958,9.45933532,105.72,105.68,4.23268325]
[1769907732139,13.35063233,105.73,105.69,4.23268325]
[1769907732544,3.8925788,105.72,105.66,4.23268325]
[1769907732948,3.8925788,105.72,105.67,4.23268325]
[1769907733259,36.99576616,105.73,105.68,4.23268325]
[1769907733862,9.45748603,105.74,105.7,4.23268325]
[1769907734158,9.45664531,105.75,105.71,4.23268325]
[1769907734853,3.8925788,105.74,105.67,4.23268325]
[1769907735455,3.8925788,105.74,105.67,9.46318051]
[1769907735663,3.8925788,105.74,105.68,4.23268325]
[1769907736062,3.8925788,105.74,105.68,9.46231008]
[1769907736253,41.26515689,105.75,105.69,4.23268325]
[1769907736660,41.26515689,105.75,105.7,4.23268325]
[1769907736966,3.8925788,105.74,105.68,13.69508527]
[1769907737167,3.8925788,105.74,105.69,4.23268325]
[1769907738449,9.45805353,105.73,105.69,4.23268325]
[1769907741550,13.35063233,105.73,105.69,4.23268325]
[1769907741848,3.8925788,105.72,105.67,4.23268325]
[1769907742268,3.8925788,105.72,105.66,4.23268325]
[1769907742471,3.8925788,105.72,105.65,4.23268325]
[1769907743654,3.8925788,105.7,105.65,4.23268325]
[1769907744072,3.8925788,105.69,105.65,4.23268325]
[1769907745557,13.35510718,105.68,105.64,4.23268325]
[1769907746081,37.01142814,105.68,105.64,4.23268325]
[1769907750586,3.8925788,105.67,105.64,4.23268325]
[1769907750964,13.35510718,105.68,105.64,4.23268325]
[1769907751187,3.8925788,105.67,105.61,4.23268325]
[1769907751360,3.8925788,105.67,105.59,4.23268325]
[1769907751760,3.8925788,105.67,105.6,4.23268325]
[1769907752283,3.8925788,105.67,105.6,13.70232159]
[1769907752788,3.8925788,105.65,105.61,4.23268325]
[1769907753389,3.8925788,105.65,105.59,4.23268325]
[1769907753575,3.8925788,105.65,105.57,4.23268325]
[1769907754389,33.13138962,105.64,105.58,4.23268325]
[1769907754587,3.8925788,105.63,105.58,4.23268325]
[1769907756579,13.3604826,105.62,105.58,4.23268325]
[1769907757171,4.17654441,105.61,105.57,4.39955021]
[1769907758685,4.17654441,105.61,105.55,18.70664267]
[1769907758686,4.17654441,105.59,105.55,4.39955021]
[1769907760488,9.47149081,105.58,105.55,4.39955021]
[1769907760983,4.17654441,105.61,105.56,4.39955021]
[1769907761562,4.17654441,105.61,105.54,9.23316272]
[1769907761563,4.17654441,105.6,105.54,4.39955021]
[1769907761768,4.17654441,105.6,105.54,13.87457028]
[1769907762582,13.7138034,105.59,105.55,4.36598689]
[1769907768483,4.2432096,105.58,105.55,4.36598689]
[1769907768986,4.2432096,105.59,105.56,4.36598689]
[1769907769395,4.2432096,105.59,105.54,13.84094818]
[1769907770696,23.67484125,105.6,105.53,4.36598689]
[1769907770697,4.2432096,105.57,105.53,4.36598689]
[1769907771193,4.2432096,105.57,105.53,13.84190905]
[1769907771390,4.2432096,105.57,105.54,4.36598689]
[1769907771582,13.71470041,105.58,105.54,13.84078854]
[1769907771778,4.2432096,105.58,105.55,4.36598689]
[1769907772777,9.4700668,105.6,105.56,4.36598689]
[1769907772987,13.7132764,105.6,105.56,4.36598689]
[1769907777092,4.2432096,105.59,105.56,4.36598689]
[1769907778398,13.71426434,105.59,105.56,4.36598689]
[1769907782109,9.47105474,105.59,105.56,4.36598689]
[1769907782484,13.71426434,105.59,105.56,4.36598689]
[1769907782882,4.2432096,105.58,105.54,65.56598689]
[1769907783084,4.2432096,105.58,105.52,13.84223136]
[1769907783085,9.47238798,105.57,105.52,13.84223136]
[1769907783301,4.2432096,105.56,105.51,144.2325119]
[1769907783686,4.2432096,105.56,105.51,139.86652501]
[1769907783980,4.2432096,105.56,105.5,4.36598689]
[1769907785302,4.2432096,105.54,105.5,4.36598689]
[1769907786919,4.2432096,105.52,105.49,0.1]
[1769907787299,4.2432096,105.52,105.49,4.37654798]
[1769907787995,13.52748183,105.53,105.49,4.37654798]
[1769907791918,33.16380217,105.54,105.49,4.37654798]
[1769907792398,4.05150344,105.53,105.49,4.37654798]
[1769907794395,13.52809539,105.53,105.49,4.37654798]
[1769907797514,9.47659195,105.53,105.49,4.37654798]
[1769907797715,9.47659195,105.53,105.5,4.27654798]
[1769907798106,9.47548812,105.54,105.5,4.27654798]
[1769907798709,4.05150344,105.54,105.5,4.27654798]
[1769907799125,4.05150344,105.54,105.49,65.57654798]
[1769907800024,4.05150344,105.54,105.5,4.27654798]
[1769907801327,9.47597839,105.53,105.5,4.27654798]
[1769907801515,13.52748183,105.53,105.5,4.27654798]
[1769907802426,9.47540588,105.54,105.5,4.27654798]
[1769907802614,9.47540588,105.54,105.51,4.27654798]
[1769907803328,13.52609158,105.55,105.51,4.27654798]
[1769907805229,4.05150344,105.54,105.51,4.27654798]
[1769907805531,13.5274044,105.54,105.51,4.27654798]
[1769907806116,4.05150344,105.53,105.49,0.1]
[1769907806519,4.05150344,105.53,105.49,4.37654798]
[1769907806811,3.10377089,105.53,105.49,4.37654798]
[1769907807210,3.10377089,105.53,105.47,13.75780319]
[1769907807425,9.47687642,105.52,105.48,4.27654798]
[1769907810130,9.47687642,105.52,105.49,4.27654798]
[1769907810329,9.47508053,105.54,105.49,4.27654798]
[1769907810536,4.05150344,105.58,105.5,4.27654798]
[1769907811034,8.32677429,105.56,105.5,4.27654798]
[1769907811234,4.05150344,105.56,105.5,4.27654798]
[1769907811416,9.47418285,105.55,105.51,4.27654798]
[1769907813030,9.47418285,105.55,105.52,4.27654798]
[1769907813539,13.74808488,105.57,105.52,4.27654798]
[1769907813715,9.47281403,105.57,105.52,4.27654798]
[1769907814520,9.47183184,105.58,105.53,4.27654798]
[1769907814937,13.52333528,105.58,105.53,4.27654798]
[1769907815737,37.20206231,105.58,105.53,4.27654798]
[1769907815918,4.05150344,105.57,105.53,4.27654798]
[1769907816637,9.47328533,105.56,105.53,4.27654798]
[1769907820145,8.51534717,105.54,105.5,4.22558124]
[1769907820346,4.24007632,105.53,105.48,9.4799727]
[1769907820534,8.51534717,105.54,105.49,9.47952509]
[1769907821146,17.99108041,105.54,105.48,9.48047023]
[1769907822352,17.99108041,105.54,105.5,4.48494022]
[1769907823358,17.99108041,105.54,105.5,3.98494022]
[1769907823539,13.90594702,105.53,105.48,9.48020886]
[1769907823738,4.42961996,105.52,105.47,9.48089248]
[1769907824745,4.42961996,105.52,105.46,9.4819177]
[1769907825053,4.42961996,105.52,105.45,9.48301567]
[1769907825263,4.42961996,105.52,105.45,70.68301567]
[1769907825449,4.42961996,105.52,105.45,4.48494022]
[1769907825761,4.42961996,105.5,105.45,4.48494022]
[1769907827845,9.47957152,105.49,105.45,4.48494022]
[1769907828235,13.90919148,105.49,105.45,4.48494022]
[1769907829156,37.60812028,105.49,105.45,4.48494022]
[1769907829338,4.42961996,105.48,105.45,4.48494022]
[1769907830765,13.91088747,105.48,105.45,4.48494022]
[1769907831055,37.61206304,105.48,105.44,0.1]
[1769907831244,4.42961996,105.47,105.44,0.1]
[1769907832353,37.61206304,105.48,105.44,0.1]
[1769907833155,4.42961996,105.47,105.44,0.1]
[1769907835869,13.91116515,105.47,105.44,0.1]
[1769907836541,9.48154519,105.47,105.44,0.1]
[1769907836734,4.42961996,105.46,105.44,0.1]
[1769907838842,13.91210272,105.46,105.44,0.1]
[1769907841468,4.42961996,105.45,105.42,143.77745781]
[1769907841650,4.42961996,105.45,105.42,142.58823414]
[1769907841863,4.42961996,105.45,105.39,65.68494022]
[1769907842157,4.42961996,105.45,105.39,4.48494022]
[1769907842856,4.42961996,105.43,105.36,4.48494022]
[1769907843061,4.42961996,105.41,105.36,4.48494022]
[1769907843245,4.42961996,105.42,105.38,4.48494022]
[1769907844241,4.42961996,105.42,105.36,4.48494022]
[1769907844965,4.42961996,105.4,105.37,4.48494022]
[1769907845369,4.42961996,105.4,105.36,4.48494022]
[1769907846268,4.42961996,105.4,105.36,13.97602719]
[1769907846565,4.42961996,105.4,105.37,4.48494022]
[1769907846772,13.91458628,105.43,105.39,4.48494022]
[1769907852067,4.2049439,105.42,105.39,4.48494022]
[1769907853345,4.2049439,105.41,105.33,13.80426541]
[1769907853563,4.2049439,105.4,105.35,4.31083778]
[1769907853764,4.27527085,105.39,105.35,4.31083778]
[1769907854061,4.2049439,105.37,105.33,4.31083778]
[1769907854266,4.2049439,105.37,105.32,0.3285373]
[1769907854449,4.2049439,105.36,105.32,0.3285373]
[1769907854646,4.2049439,105.36,105.28,12.95942112]
[1769907855048,4.2049439,105.36,105.29,9.49740477]
[1769907855554,4.2049439,105.36,105.27,3.56105564]
[1769907855760,4.2049439,105.36,105.29,9.49705085]
[1769907856271,4.2049439,105.34,105.28,2.96638829]
[1769907858160,13.69891522,105.33,105.28,2.96638829]
[1769907858357,4.2049439,105.32,105.27,12.56564004]
[1769907858679,37.43384354,105.33,105.28,2.96638829]
[1769907858972,4.2049439,105.32,105.29,2.96638829]
[1769907860272,13.7000969,105.32,105.28,2.96638829]
[1769907861172,4.2049439,105.37,105.3,2.96638829]
[1769907861357,4.2049439,105.36,105.31,2.96638829]
[1769907862170,13.69711286,105.35,105.31,2.96638829]
[1769907862361,4.2049439,105.34,105.29,9.49722147]
[1769907862560,4.2049439,105.34,105.29,12.46360976]
[1769907862864,13.6966107,105.36,105.32,2.96638829]
[1769907863456,4.2049439,105.35,105.32,2.96638829]
[1769907864363,13.69737015,105.35,105.32,2.96638829]
[1769907864564,9.49242625,105.35,105.32,2.96638829]
[1769907865281,4.2049439,105.38,105.33,2.96638829]
[1769907865476,4.2049439,105.38,105.34,2.96638829]
[1769907866469,13.69457701,105.38,105.34,6.42744393]
[1769907866671,4.2049439,105.37,105.33,9.49323722]
[1769907866869,4.2049439,105.37,105.33,12.45962551]
[1769907867673,9.48885366,105.39,105.35,2.96638829]
[1769907868065,13.69280889,105.4,105.36,2.96638829]
[1769907868271,4.2049439,105.4,105.37,2.96638829]
[1769907868870,4.2049439,105.4,105.36,15.91869193]
[1769907869085,13.69262531,105.4,105.36,15.91869193]
[1769907870267,4.2049439,105.42,105.38,2.96638829]
[1769907870571,4.2049439,105.42,105.38,6.42744393]
[1769907870763,4.2049439,105.42,105.37,6.42744393]
[1769907870964,4.2049439,105.42,105.37,2.96638829]
[1769907871164,4.2049439,105.42,105.36,2.96638829]
[1769907871374,4.2049439,105.42,105.35,9.49186091]
[1769907871375,4.2049439,105.42,105.35,12.4582492]
[1769907872488,4.2049439,105.4,105.36,12.45727297]
[1769907874780,4.2049439,105.4,105.37,2.96638829]
[1769907874976,9.48676596,105.41,105.37,2.96638829]
[1769907875179,4.2049439,105.41,105.37,2.96638829]
[1769907875379,9.48522101,105.43,105.38,2.96638829]
[1769907875572,4.2049439,105.43,105.39,2.96638829]
[1769907876475,4.2049439,105.43,105.39,12.45444231]
[1769907879383,4.21397068,105.42,105.39,12.45444231]
[1769907879599,4.21397068,105.42,105.38,12.45556765]
[1769907880172,4.21397068,105.42,105.39,2.96638829]
[1769907880592,4.21397068,105.42,105.39,12.45484178]
[1769907881899,0.2,105.47,105.39,12.45484178]
[1769907883294,0.2,105.47,105.37,88.38521434]
[1769907883295,23.70791844,105.45,105.4,4.1585335]
[1769907883996,4.46666551,105.44,105.4,4.1585335]
[1769907885680,9.48496632,105.43,105.4,4.1585335]
[1769907885998,13.95163183,105.43,105.39,4.1585335]
[1769907888099,4.46666551,105.42,105.38,65.3585335]
[1769907889295,4.46666551,105.42,105.38,4.1585335]
[1769907889712,13.95282879,105.42,105.38,4.1585335]
[1769907890997,4.46666551,105.41,105.38,4.1585335]
[1769907891899,4.46666551,105.41,105.38,13.64778398]
[1769907892502,13.95282879,105.42,105.38,13.64778398]
[1769907892709,13.95186026,105.43,105.39,4.1585335]
[1769907892893,4.46666551,105.42,105.39,4.1585335]
[1769907894098,4.46666551,105.4,105.36,13.64979451]
[1769907894305,4.46666551,105.4,105.36,4.1585335]
[1769907896207,4.46666551,105.39,105.36,4.1585335]
[1769907897616,13.95529141,105.39,105.36,4.1585335]
[1769907900312,13.95475624,105.4,105.37,4.1585335]
[1769907900492,13.95475624,105.4,105.36,9.49098949]
[1769907900493,4.46666551,105.39,105.36,13.64952299]
[1769907900694,13.95475624,105.4,105.37,4.1585335]
[1769907901016,4.46666551,105.4,105.37,4.1585335]
[1769907902710,13.9538271,105.41,105.37,4.1585335]
[1769907902899,13.9538271,105.41,105.36,9.49098949]
[1769907902900,4.46666551,105.4,105.36,4.1585335]
[1769907905218,13.95478458,105.4,105.36,4.1585335]
[1769907906117,4.46666551,105.39,105.36,4.1585335]
[1769907907209,4.46666551,105.39,105.36,4.32196719]
[1769907908910,4.05463074,105.38,105.35,4.32196719]
[1769907909103,4.05463074,105.38,105.33,75.01587497]
[1769907909426,4.05463074,105.38,105.33,75.015388]
[1769907910113,4.05463074,105.38,105.34,4.32196719]
[1769907910809,4.05463074,105.37,105.34,4.32196719]
[1769907911801,4.05463074,105.37,105.31,65.52196719]
[1769907912913,4.05463074,105.35,105.31,65.52196719]
[1769907913116,4.05463074,105.35,105.31,65.02196719]
[1769907913615,4.05463074,105.35,105.31,4.32196719]
[1769907913821,13.54505283,105.37,105.32,4.32196719]
[1769907914825,4.05463074,105.36,105.32,4.32196719]
[1769907915028,4.05463074,105.36,105.32,13.81662512]
[1769907915432,13.54613223,105.36,105.32,13.81662512]
[1769907915925,4.05463074,105.35,105.29,4.32196719]
[1769907917025,9.49307005,105.34,105.29,13.81932407]
[1769907917219,13.54770079,105.34,105.3,4.32196719]
[1769907919423,9.49307005,105.34,105.31,4.32196719]
[1769907919726,4.05463074,105.36,105.31,4.32196719]
[1769907920125,4.05463074,105.36,105.32,4.32196719]
[1769907920624,13.54627324,105.36,105.32,4.32196719]
[1769907921612,37.27444332,105.36,105.32,4.32196719]
[1769907923430,4.05463074,105.35,105.31,9.49544531]
[1769907923622,4.05463074,105.35,105.32,4.32196719]
[1769907925332,13.54627324,105.36,105.32,4.32196719]
[1769907925714,4.05463074,105.35,105.32,4.32196719]
[1769907926233,4.05463074,105.35,105.3,4.32196719]
[1769907926432,4.05463074,105.35,105.29,70.19712164]
[1769907926617,4.05463074,105.33,105.28,9.49805643]
[1769907926931,4.05463074,105.32,105.25,1e-08]
[1769907927116,4.05463074,105.28,105.25,1e-08]
[1769907927830,4.05463074,105.28,105.21,0.1]
[1769907928511,4.05463074,105.26,105.21,0.1]
[1769907930336,4.05463074,105.26,105.21,4.42196719]
[1769907930836,4.05463074,105.26,105.22,4.32196719]
[1769907931131,13.55501775,105.26,105.22,4.32196719]
[1769907931431,9.50038701,105.26,105.22,4.32196719]
[1769907931639,4.05463074,105.25,105.21,0.1]
[1769907932815,9.50209045,105.24,105.21,0.1]
[1769907933034,4.05463074,105.23,105.21,0.1]
[1769907933334,13.55672119,105.24,105.21,0.1]
[1769907935322,4.05463074,105.23,105.21,0.1]
[1769907936539,4.05463074,105.24,105.21,0.1]
[1769907937122,4.15088892,105.25,105.21,4.21268476]
[1769907937425,13.65256597,105.25,105.21,4.21268476]
[1769907937629,9.50167705,105.25,105.21,4.21268476]
[1769907937932,4.15088892,105.24,105.21,4.21268476]
[1769907938138,13.65256597,105.25,105.21,4.21268476]
[1769907939226,4.15088892,105.24,105.2,0.1]
[1769907939427,13.65256597,105.25,105.21,4.11268476]
[1769907939740,4.15088892,105.25,105.22,4.11268476]
[1769907940236,4.15088892,105.28,105.23,4.11268476]
[1769907940440,4.15088892,105.28,105.24,4.11268476]
[1769907940826,13.64856723,105.29,105.24,4.11268476]
[1769907941228,13.64856723,105.29,105.25,4.11268476]
[1769907941423,4.15088892,105.28,105.21,4.11268476]
[1769907941623,4.15088892,105.28,105.21,13.61738205]
[1769907942043,4.15088892,105.28,105.22,4.1083988]
[1769907942242,4.15088892,105.28,105.22,13.61199395]
[1769907942542,4.15088892,105.28,105.23,4.1083988]
[1769907943346,13.6751272,105.27,105.23,4.1083988]
[1769907943643,4.17574466,105.26,105.2,4.2083988]
[1769907944742,4.17574466,105.26,105.21,4.1083988]
[1769907944924,4.17574466,105.27,105.24,4.1083988]
[1769907945732,13.67534446,105.27,105.24,4.1083988]
[1769907945934,9.4995998,105.27,105.24,4.1083988]
[1769907946451,13.67534446,105.27,105.24,4.1083988]
[1769907946944,27.92082543,105.29,105.25,4.1083988]
[1769907947147,4.17574466,105.29,105.25,4.1083988]
[1769907947646,4.17574466,105.3,105.25,4.1083988]
[1769907947848,4.17574466,105.3,105.25,9.3100221]
[1769907948150,4.17574466,105.3,105.26,4.1083988]
[1769907948948,13.67246772,105.3,105.26,4.1083988]
[1769907949152,9.49672306,105.3,105.26,4.1083988]
[1769907949453,4.17574466,105.31,105.27,4.1083988]
[1769907950454,4.17574466,105.3,105.27,4.1083988]
[1769907950655,4.17574466,105.3,105.26,4.1083988]
[1769907950945,13.67332277,105.29,105.26,4.1083988]
[1769907953051,4.17574466,105.28,105.23,4.1083988]
[1769907953251,4.17574466,105.28,105.22,4.1083988]
[1769907953553,4.17574466,105.28,105.21,4.1083988]
[1769907955236,4.17574466,105.26,105.2,4.2083988]
[1769907956343,4.17574466,105.26,105.2,0.1]
[1769907956853,4.17574466,105.26,105.2,4.2083988]
[1769907957227,4.17574466,105.24,105.2,4.2083988]
[1769907957443,4.17574466,105.24,105.17,9.50838957]
[1769907957648,4.17574466,105.24,105.16,4.1083988]
[1769907958350,4.17574466,105.24,105.16,9.50872777]
[1769907958543,4.17574466,105.24,105.17,4.1083988]
[1769907959138,4.17574466,105.24,105.18,4.1083988]
[1769907959340,4.17574466,105.22,105.18,4.1083988]
[1769907960137,13.67792409,105.24,105.19,4.1083988]
[1769907960346,4.17574466,105.23,105.14,4.1083988]
[1769907960541,4.17574466,105.23,105.18,13.61588794]
[1769907961151,4.17574466,105.23,105.19,4.1083988]
[1769907961460,4.17574466,105.25,105.2,4.1083988]
[1769907961662,4.17574466,105.26,105.2,4.1083988]
[1769907962656,4.17574466,105.26,105.21,13.61319872]
[1769907962958,13.67634547,105.26,105.21,13.61319872]
[1769907963165,4.17574466,105.25,105.21,13.61319872]
[1769907963662,13.67549882,105.27,105.22,4.1083988]
[1769907964040,4.17574466,105.27,105.22,4.1083988]
[1769907964656,4.17574466,105.27,105.23,9.50299344]
[1769907964861,4.17574466,105.28,105.24,4.1083988]
[1769907965048,4.17574466,105.28,105.15,4.1083988]
[1769907965256,4.17574466,105.23,105.15,4.1083988]
[1769907965445,4.17574466,105.23,105.16,4.1083988]
[1769907966366,4.17574466,105.23,105.17,4.1083988]
[1769907966560,4.17574466,105.23,105.17,13.61648057]
[1769907966864,13.67964125,105.22,105.18,4.1083988]
[1769907970465,4.26594499,105.21,105.16,4.12717986]
[1769907970766,4.26594499,105.21,105.14,4.12717986]
[1769907971142,4.26594499,105.19,105.12,4.12717986]
[1769907971346,4.26594499,105.18,105.12,4.12717986]
[1769907971966,4.26594499,105.18,105.11,0.3285373]
[1769907972176,4.26594499,105.18,105.14,13.63787784]
[1769907972472,4.26594499,105.16,105.12,4.12717986]
[1769907973252,4.26594499,105.16,105.11,0.3285373]
[1769907974070,4.26594499,105.16,105.11,4.45571716]
[1769907974585,13.77616848,105.15,105.11,4.45571716]
[1769907974771,4.26594499,105.17,105.12,4.12717986]
[1769907975072,13.77429068,105.18,105.12,4.12717986]
[1769907975259,19.72124712,105.19,105.12,4.12717986]
[1769907976472,19.72124712,105.19,105.13,13.63921258]
[1769907976652,19.72124712,105.19,105.14,4.12717986]
[1769907977875,4.26594499,105.18,105.14,4.12717986]
[1769907979174,13.77366159,105.18,105.14,4.12717986]
[1769907981181,5.9484039,105.19,105.16,4.12717986]
[1769907981553,4.26594499,105.22,105.18,4.12717986]
[1769907981750,13.76893843,105.23,105.18,4.12717986]
[1769907982169,13.76893843,105.23,105.19,4.12717986]
[1769907983274,13.76893843,105.23,105.19,13.6335873]
[1769907983478,4.26594499,105.23,105.2,4.12717986]
[1769907983867,9.5021301,105.24,105.2,4.12717986]
[1769907984378,4.26594499,105.24,105.2,4.12717986]
[1769907984562,4.26594499,105.24,105.19,13.6335873]
[1769907985679,4.26594499,105.24,105.18,9.3149176]
[1769907985680,4.26594499,105.24,105.2,13.63287571]
[1769907986158,4.26594499,105.24,105.2,4.12717986]
[1769907986358,13.7686959,105.24,105.2,4.12717986]
[1769907987564,4.26594499,105.23,105.15,4.12717986]
[1769907987760,4.26594499,105.23,105.16,4.12717986]
[1769907988562,4.26594499,105.21,105.16,4.12717986]
[1769907990781,13.77164841,105.2,105.16,4.12717986]
[1769907991685,4.26594499,105.19,105.11,13.96931021]
[1769907991886,4.26594499,105.19,105.11,4.45571716]
[1769907992684,4.26594499,105.16,105.11,4.45571716]
[1769907994596,9.51022349,105.15,105.11,4.45571716]
[1769907994885,13.77616848,105.15,105.11,4.45571716]
[1769907996284,4.26594499,105.15,105.11,13.96946198]
[1769907996483,4.26594499,105.15,105.11,0.3285373]
[1769907996784,4.26594499,105.13,105.11,0.3285373]
[1769907998180,4.26594499,105.13,105.09,9.51549072]
[1769907998374,4.26594499,105.13,105.09,13.91593116]
[1769907998574,4.26594499,105.13,105.09,9.51549072]
[1769907998798,4.26594499,105.13,105.08,4.40044044]
[1769907998972,4.25623642,105.12,105.08,4.40044044]
[1769907999292,4.25623642,105.12,105.07,9.51746454]
[1769907999490,4.25623642,105.12,105.05,4.40044044]
[1769907999986,4.25623642,105.12,105.06,13.91877907]
[1769908000371,4.25623642,105.12,105.05,4.40044044]
[1769908000688,4.25623642,105.07,105.01,4.40044044]
[1769908000868,4.25623642,105.07,105.01,13.92308533]
[1769908001795,13.77460687,105.06,105.02,4.40044044]
[1769908002178,4.31665645,105.05,105.01,9.52264489]
[1769908002483,4.31665645,105.05,105.0,4.16503605]
[1769908002875,51.85076971,105.1,105.02,4.06503605]
[1769908002876,4.31665645,105.07,105.02,4.06503605]
[1769908003789,4.31665645,105.09,105.03,4.06503605]
[1769908003995,4.31665645,105.11,105.05,4.06503605]
[1769908005984,4.31665645,105.1,105.05,13.58344734]
[1769908006589,4.31665645,105.1,105.06,4.06503605]
[1769908007079,4.31665645,105.1,105.06,13.58318437]
[1769908007591,9.51469113,105.11,105.07,4.06503605]
[1769908008103,28.09900043,105.12,105.07,4.06503605]
[1769908008286,13.82999729,105.12,105.07,4.06503605]
[1769908009108,4.31665645,105.12,105.08,4.06503605]
[1769908009277,4.31665645,105.12,105.08,13.58107986]
[1769908009480,9.51240198,105.13,105.09,4.06503605]
[1769908010004,5.94485131,105.15,105.13,4.06503605]
[1769908010504,4.31665645,105.17,105.13,13.37995365]
[1769908010890,4.31665645,105.18,105.13,13.37995365]
[1769908011088,4.31665645,105.18,105.14,1.66049237]
[1769908011402,13.82175294,105.21,105.16,1.66049237]
[1769908011593,13.82175294,105.21,105.16,10.97540997]
[1769908011794,13.82175294,105.21,105.16,1.66049237]
[1769908012706,13.82175294,105.21,105.16,11.16950783]
[1769908013291,4.31665645,105.2,105.16,11.16950783]
[1769908013987,4.31665645,105.21,105.17,1.66049237]
[1769908014999,4.31665645,105.21,105.17,11.16880711]
[1769908015304,4.31665645,105.23,105.17,1.66049237]
[1769908015599,4.31665645,105.23,105.15,1.66049237]
[1769908015783,4.31665645,105.23,105.13,34.75444198]
[1769908015991,4.31665645,105.2,105.13,1.66049237]
[1769908016288,4.31665645,105.2,105.13,11.17196066]
[1769908016489,4.31665645,105.2,105.14,9.51108701]
[1769908016902,13.82326354,105.19,105.14,1.66049237]
[1769908017108,4.31665645,105.18,105.14,1.66049237]
[1769908017495,4.31665645,105.18,105.13,11.17252509]
[1769908019812,5.93479471,105.22,105.13,11.17252509]
[1769908020186,5.93479471,105.22,105.14,4.06503605]
[1769908020507,5.93479471,105.22,105.09,4.06503605]
[1769908020693,7.11695886,105.21,105.09,4.06503605]
[1769908020896,7.11695886,105.21,105.1,4.06503605]
[1769908020897,126.46425855,105.2,105.1,4.06503605]
[1769908021207,129.64978581,105.2,105.11,13.57830662]
[1769908021895,4.31665645,105.18,105.11,13.57830662]
[1769908023208,4.31665645,105.16,105.11,13.57830662]
[1769908024308,4.31665645,105.16,105.11,4.06503605]
[1769908025609,4.31665645,105.14,105.09,74.78028709]
[1769908025990,4.31665645,105.14,105.07,65.26503605]
[1769908026214,4.31665645,105.14,105.07,74.78222327]
[1769908026995,4.31665645,105.14,105.08,4.26782732]
[1769908027214,4.31665645,105.14,105.07,74.98501454]
[1769908027415,4.31665645,105.14,105.07,4.26782732]
[1769908027599,4.30637535,105.12,105.05,13.78660148]
[1769908027993,4.30637535,105.12,105.05,9.51877416]